fUST/lending_fUST_20251125
["ID","MTS","AMOUNT","RATE_DAILY","PERIOD"]
[394828823,1764001840515,-500.0,9.999e-05,2]
[394828825,1764001840525,-500.0,9.999e-05,2]
[394828828,1764001840535,-500.0,9.999e-05,2]
[394828830,1764001840545,-213.2,0.0001,2]
[394828832,1764001840554,-14411.89449161,0.0001,2]
[394829021,1764001844105,-671.77936835,0.0001,2]
[394829022,1764001844116,-12823.22942917,0.0001,2]
[394829023,1764001844259,-260.09671087,0.0001,2]
[394829024,1764001844269,-1000.0,0.00010133,2]
[394829025,1764001844279,-1000.0,0.00010133,2]
[394829026,1764001844290,-989.0,0.00010266,2]
[394829027,1764001844299,-414.0,0.00010266,2]
[394829028,1764001844309,-231.0,0.00011099,2]
[394829029,1764001844319,-1000.0,0.00011147,2]
[394829030,1764001844329,-724.74040606,0.00011147,2]
[394829044,1764001846207,-275.25959394,0.00011147,2]
[394829046,1764001846217,-579.0,0.00011147,2]
[394829047,1764001846228,-151.0,0.00011922,2]
[394829048,1764001846237,-159.132,0.00012246,2]
[394829049,1764001846247,-644.20840606,0.00012261,2]
[394829050,1764001846342,-355.79159394,0.00012261,2]
[394829051,1764001846352,-627.0,0.00012261,2]
[394829052,1764001846362,-154.563364,0.00012266,2]
[394829053,1764001846372,-353.36441271,0.00012397,2]
[394829054,1764001846382,-396.3943016,0.0001274,2]
[394829055,1764001846392,-396.3943016,0.00012741,2]
[394829056,1764001846402,-185.55994583,0.00012898,2]
[394829057,1764001846411,-378.67082941,0.00012899,2]
[394829058,1764001846421,-500.0,0.00012899,2]
[394829059,1764001846431,-500.0,0.00012899,2]
[394829060,1764001846442,-500.0,0.00012899,2]
[394829061,1764001846452,-571.33398324,0.00012899,2]
[394829062,1764001846461,-194.09929683,0.00012899,2]
[394829063,1764001846471,-500.0,0.00012899,2]
[394829064,1764001846480,-500.0,0.00012899,2]
[394829065,1764001846489,-500.0,0.00012899,2]
[394829066,1764001846499,-500.0,0.00012899,2]
[394829067,1764001846509,-500.0,0.00012899,2]
[394829068,1764001846519,-500.0,0.00012899,2]
[394829069,1764001846528,-500.0,0.00012899,2]
[394829070,1764001846538,-500.0,0.00012899,2]
[394829071,1764001846548,-500.0,0.00012899,2]
[394829072,1764001846558,-4605.14230273,0.000129,2]
[394829073,1764001846568,-158.904971,0.00013,4]
[394829074,1764001846577,-154.563364,0.00013,4]
[394829075,1764001846587,-154.563364,0.00013,4]
[394829076,1764001846597,-154.563364,0.00013,4]
[394829077,1764001846607,-258.0,0.00013099,2]
[394829078,1764001846617,-396.3943016,0.00013141,2]
[394829079,1764001846627,-414.0,0.00013266,2]
[394829080,1764001846637,-600.0,0.0001344,2]
[394829081,1764001846649,-17978.43834914,0.0001351,2]
[394829082,1764001846659,-600.0,0.0001358,2]
[394829083,1764001846669,-10000.0,0.00013598,2]
[394829084,1764001846679,-8242.48193313,0.00013598,2]
[394829085,1764001846691,-1784.96044974,0.00013598,2]
[394829086,1764001846703,-707.46839386,0.00013598,2]
[394829091,1764001847533,-1318.70184405,0.00013598,2]
[394829092,1764001847544,-36984.22489589,0.00013598,2]
[394829093,1764001848987,-10313.11202671,0.00013598,2]
[394829095,1764001848999,-360.40419303,0.00013598,2]
[394829097,1764001849010,-3040.92075901,0.00013598,2]
[394829098,1764001856000,151.0,0.0002,30]
[394829099,1764001858016,151.0,0.0002,30]
[394829100,1764001892446,154.563364,0.0001372,10]
[394829101,1764001892797,154.563364,0.0001344,10]
[394829102,1764001928106,158.904971,0.00014,10]
[394829103,1764001952419,154.563364,0.00014,10]
[394829104,1764001953020,154.563364,0.00014,10]
[394829105,1764002010767,154.563364,0.0001372,10]
[394829106,1764002072102,154.563364,0.00014,10]
[394829107,1764002252379,154.563365,0.0001372,10]
[394829108,1764002749595,513.0,5e-05,2]
[394829109,1764002805885,172.41774473,0.0002,30]
[394829110,1764002809156,151.0,0.0002,30]
[394829111,1764002913479,154.563365,0.00014,10]
[394829190,1764003032328,-414.0,7.228e-05,2]
[394829192,1764003032338,-414.0,7.301e-05,2]
[394829194,1764003032347,-150.0,7.562e-05,2]
[394829196,1764003032358,-414.0,7.992e-05,2]
[394829198,1764003032369,-177.0,9.562e-05,2]
[394829200,1764003032378,-10001.0,0.0001,2]
[394829202,1764003032388,-439.76849875,0.00010061,2]
[394829204,1764003032396,-414.0,0.00010992,2]
[394829206,1764003032406,-204.0,0.00011562,2]
[394829208,1764003032415,-500.0,0.00012322,2]
[394829210,1764003032424,-500.0,0.00012322,2]
[394829212,1764003032433,-265.06958058,0.00012322,2]
[394829214,1764003032442,-500.0,0.00012322,2]
[394829216,1764003032450,-585.86950778,0.00012322,2]
[394829218,1764003032459,-500.0,0.00012322,2]
[394829220,1764003032468,-500.0,0.00012322,2]
[394829222,1764003032477,-500.0,0.00012322,2]
[394829224,1764003032486,-500.0,0.00012322,2]
[394829226,1764003032495,-500.0,0.00012322,2]
[394829228,1764003032504,-500.0,0.00012322,2]
[394829230,1764003032513,-346.59624288,0.00012322,2]
[394829304,1764003040277,-153.40375712,0.00012322,2]
[394829306,1764003040287,-467.13305925,0.00012322,2]
[394829315,1764003040360,-32.86694075,0.00012322,2]
[394829317,1764003040370,-500.0,0.00012322,2]
[394829319,1764003040381,-500.0,0.00012322,2]
[394829321,1764003040391,-500.0,0.00012322,2]
[394829323,1764003040400,-500.0,0.00012322,2]
[394829325,1764003040409,-500.0,0.00012322,2]
[394829327,1764003040419,-180.50549537,0.00012322,2]
[394829329,1764003040428,-500.0,0.00012322,2]
[394829331,1764003040438,-300.0,0.00012323,2]
[394829334,1764003040447,-300.0,0.00012323,2]
[394829336,1764003040457,-300.0,0.00012323,2]
[394829339,1764003040467,-300.0,0.00012323,2]
[394829341,1764003040476,-1200.0,0.00012323,2]
[394829343,1764003040485,-50000.0,0.00012323,2]
[394829345,1764003040496,-202.63,0.00012329,2]
[394829347,1764003040505,-168.86,0.00012329,2]
[394829349,1764003040514,-844.33,0.00012329,2]
[394829351,1764003040523,-353.36441271,0.00012403,2]
[394829353,1764003040533,-160.0,0.00012403,2]
[394829355,1764003040542,-500.0,0.00012773,2]
[394829357,1764003040551,-500.0,0.00012773,2]
[394829359,1764003040560,-500.0,0.00012773,2]
[394829361,1764003040569,-500.0,0.00012773,2]
[394829363,1764003040578,-500.0,0.00012773,2]
[394829365,1764003040587,-500.0,0.00012773,2]
[394829367,1764003040597,-500.0,0.00012773,2]
[394829369,1764003040606,-500.0,0.00012773,2]
[394829371,1764003040615,-67132.03437286,0.00012798,2]
[394829374,1764003040628,-1130.25753142,0.00012798,2]
[394829613,1764003138416,-414.0,7.992e-05,2]
[394829616,1764003290919,150.0,0.00013603,30]
[394829618,1764003362015,150.0,0.0001408,30]
[394829619,1764003432114,150.0,0.0001408,30]
[394829620,1764003487409,-647.0399207,7.754e-05,2]
[394829621,1764003487431,-5946.92,7.8e-05,2]
[394829622,1764003487453,-1021.02017602,7.832e-05,2]
[394829623,1764003487475,-1021.02017602,7.911e-05,2]
[394829628,1764003683771,151.0,0.0002,30]
[394829635,1764003908733,-414.0,7.833e-05,2]
[394829636,1764003908760,-414.0,7.912e-05,2]
[394829637,1764003908784,-172.0,7.992e-05,2]
[394829638,1764003915618,-242.0,7.992e-05,2]
[394829639,1764003915641,-150.0,8.34e-05,2]
[394829640,1764003993291,-414.0,8.212e-05,2]
[394829766,1764004238219,-526.27785124,8.813e-05,2]
[394829767,1764004238230,-526.27785124,8.902e-05,2]
[394829768,1764004238240,-150.0,9.038e-05,2]
[394829769,1764004238251,-526.27785124,9.175e-05,2]
[394829770,1764004238261,-336.63461142,0.00010445,2]
[394829771,1764004238272,-986.07771536,0.00010573,2]
[394829772,1764004238283,-207.0,0.000106,2]
[394829773,1764004238292,-250.0,0.00010616,2]
[394829774,1764004238301,-404.85470495,0.00010616,2]
[394829775,1764004238311,-500.0,0.00010616,2]
[394829776,1764004238321,-500.0,0.00010616,2]
[394829777,1764004238332,-335.91823199,0.00010616,2]
[394829778,1764004238343,-500.0,0.00010616,2]
[394829779,1764004238354,-500.0,0.00010616,2]
[394829780,1764004238364,-500.0,0.00010616,2]
[394829781,1764004238389,-500.0,0.00010616,2]
[394829782,1764004238408,-300.0,0.00010616,2]
[394829783,1764004238425,-300.0,0.00010616,2]
[394829784,1764004238440,-300.0,0.00010616,2]
[394829785,1764004238456,-300.0,0.00010616,2]
[394829786,1764004238472,-1200.0,0.00010616,2]
[394829787,1764004238489,-50000.0,0.00010617,2]
[394829788,1764004238504,-1200.0,0.00010617,2]
[394829789,1764004238527,-500.0,0.00010619,2]
[394829790,1764004238543,-55904.6780167,0.0001062,2]
[394829791,1764004238585,-834095.3219833,0.0001062,2]
[394829792,1764004238601,-500.0,0.00010673,2]
[394829793,1764004238615,-500.0,0.00010673,2]
[394829794,1764004238628,-500.0,0.00010673,2]
[394829795,1764004238640,-500.0,0.00010673,2]
[394829796,1764004238653,-500.0,0.00010673,2]
[394829797,1764004238667,-526.12941058,0.00010673,2]
[394829798,1764004238680,-500.0,0.00010673,2]
[394829799,1764004238695,-500.0,0.00010673,2]
[394829800,1764004238710,-500.0,0.00010673,2]
[394829801,1764004238726,-500.0,0.00010673,2]
[394829802,1764004238741,-500.0,0.00010673,2]
[394829803,1764004238753,-500.0,0.00010673,2]
[394829804,1764004238764,-500.0,0.00010673,2]
[394829805,1764004238777,-500.0,0.00010893,2]
[394829806,1764004238792,-500.0,0.00010959,2]
[394829807,1764004238805,-500.0,0.00010959,2]
[394829808,1764004238817,-543.29254255,0.00010959,2]
[394829809,1764004238830,-500.0,0.00010959,2]
[394829810,1764004238845,-500.0,0.00010959,2]
[394829811,1764004238856,-500.0,0.00010959,2]
[394829812,1764004238868,-500.0,0.00010959,2]
[394829813,1764004238887,-500.0,0.00010959,2]
[394829814,1764004238900,-500.0,0.00010959,2]
[394829815,1764004238914,-500.0,0.00010959,2]
[394829816,1764004238929,-500.0,0.00010959,2]
[394829817,1764004238942,-177.0,0.00011038,2]
[394829818,1764004238955,-500.0,0.00011167,2]
[394829819,1764004238968,-336.63461142,0.0001119,2]
[394829820,1764004238981,-414.0,0.00011212,2]
[394829821,1764004238994,-1000.0,0.00011221,2]
[394829822,1764004239007,-1000.0,0.00011221,2]
[394829823,1764004239020,-1000.0,0.00011221,2]
[394829824,1764004239033,-1000.0,0.00011221,2]
[394829825,1764004239047,-1000.0,0.00011221,2]
[394829826,1764004239060,-1000.0,0.00011221,2]
[394829827,1764004239074,-1000.0,0.00011221,2]
[394829828,1764004239087,-1000.0,0.00011221,2]
[394829829,1764004239099,-519.55158055,0.00011221,2]
[394829830,1764004239112,-1000.0,0.00011221,2]
[394829831,1764004239126,-1000.0,0.00011221,2]
[394829832,1764004239140,-250.0,0.00011432,2]
[394829833,1764004239154,-250.0,0.00011432,2]
[394829834,1764004239167,-250.0,0.00011432,2]
[394829835,1764004239181,-250.0,0.00011432,2]
[394829836,1764004239194,-250.0,0.00011432,2]
[394829837,1764004239207,-250.0,0.00011432,2]
[394829838,1764004239221,-250.0,0.00011432,2]
[394829839,1764004239234,-250.0,0.00011432,2]
[394829840,1764004239247,-250.0,0.00011432,2]
[394829841,1764004239260,-250.0,0.00011432,2]
[394829842,1764004239273,-500.0,0.00011441,2]
[394829843,1764004239286,-300.0,0.0001167,2]
[394829844,1764004239299,-385.0,0.0001167,2]
[394829845,1764004239312,-420.0,0.0001167,2]
[394829846,1764004239324,-420.0,0.0001167,2]
[394829847,1764004239336,-1680.0,0.00011671,2]
[394829848,1764004239348,-1680.0,0.00011677,2]
[394829849,1764004239360,-500.0,0.00011715,2]
[394829850,1764004239372,-1500.0,0.00011768,2]
[394829851,1764004239387,-1114.4645296,0.00011768,2]
[394829852,1764004239400,-1500.0,0.00011768,2]
[394829853,1764004239411,-1500.0,0.00011768,2]
[394829854,1764004239424,-1500.0,0.00011768,2]
[394829855,1764004239435,-1500.0,0.00011768,2]
[394829856,1764004239447,-1500.0,0.00011768,2]
[394829857,1764004239459,-1511.17422347,0.00011768,2]
[394829858,1764004239471,-1500.0,0.00011768,2]
[394829859,1764004239483,-336.63461142,0.00011935,2]
[394829860,1764004239495,-500.0,0.00011989,2]
[394829861,1764004239509,-151.0,0.000121,2]
[394829862,1764004239522,-500.0,0.00012263,2]
[394829863,1764004239535,-254.8247351,0.00012274,2]
[394829864,1764004239547,-151.0,0.000123,2]
[394829865,1764004239562,-2000.0,0.00012316,2]
[394829866,1764004239574,-2000.0,0.00012316,2]
[394829867,1764004239591,-2000.0,0.00012316,2]
[394829868,1764004239603,-2000.0,0.00012316,2]
[394829869,1764004239616,-2000.0,0.00012316,2]
[394829870,1764004239632,-1393.93773721,0.00012316,2]
[394829871,1764004239644,-1959.79337671,0.00012316,2]
[394829872,1764004239658,-370.34,0.00012329,2]
[394829873,1764004239670,-151.0,0.00012329,2]
[394829874,1764004239684,-151.0,0.00012329,2]
[394829875,1764004239696,-1849.14,0.00012329,2]
[394829876,1764004239708,-1540.95,0.00012329,2]
[394829877,1764004239720,-151.0,0.00012329,2]
[394829878,1764004239731,-1284.12,0.00012329,2]
[394829879,1764004239744,-1070.1,0.00012329,2]
[394829880,1764004239756,-891.75,0.00012329,2]
[394829881,1764004239768,-743.13,0.00012329,2]
[394829882,1764004239781,-619.27,0.00012329,2]
[394829883,1764004239793,-516.06,0.00012329,2]
[394829884,1764004239806,-430.05,0.00012329,2]
[394829885,1764004239818,-358.37,0.00012329,2]
[394829886,1764004239830,-298.65,0.00012329,2]
[394829887,1764004239842,-248.87,0.00012329,2]
[394829888,1764004239854,-181.058826,0.00012329,2]
[394829889,1764004239866,-181.058826,0.00012329,2]
[394829890,1764004239880,-181.058826,0.00012329,2]
[394829892,1764004239893,-181.058826,0.00012329,2]
[394829893,1764004239905,-207.39,0.00012329,2]
[394829894,1764004239918,-239.211571,0.00012329,2]
[394829895,1764004239931,-239.211571,0.00012329,2]
[394829896,1764004239942,-239.211571,0.00012329,2]
[394829897,1764004239956,-172.83,0.00012329,2]
[394829898,1764004239968,-239.211571,0.00012329,2]
[394829899,1764004239977,-151.0,0.00012329,2]
[394829900,1764004239987,-864.16,0.00012329,2]
[394829901,1764004239996,-151.0,0.00012329,2]
[394829903,1764004240006,-1755.783485,0.00012329,2]
[394829905,1764004240015,-1755.783485,0.00012329,2]
[394829907,1764004240024,-1755.783485,0.00012329,2]
[394829909,1764004240034,-1755.783485,0.00012329,2]
[394829911,1764004240044,-283.854515,0.00012329,2]
[394829914,1764004240053,-151.0,0.00012329,2]
[394829935,1764004240298,-283.854515,0.00012329,2]
[394829938,1764004240328,-283.854515,0.00012329,2]
[394829940,1764004240340,-283.854515,0.00012329,2]
[394829942,1764004240349,-151.0,0.00012329,2]
[394829943,1764004240360,-151.0,0.00012329,2]
[394829944,1764004240370,-1360.297015,0.00012329,2]
[394829945,1764004240380,-1360.297015,0.00012329,2]
[394829946,1764004240390,-170.958768,0.00012329,2]
[394829947,1764004240399,-151.0,0.00012329,2]
[394829948,1764004240408,-170.958768,0.00012329,2]
[394829949,1764004240417,-1360.297015,0.00012329,2]
[394829950,1764004240427,-151.0,0.00012329,2]
[394829951,1764004240436,-170.958768,0.00012329,2]
[394829952,1764004240445,-1360.297015,0.00012329,2]
[394829953,1764004240455,-170.958768,0.00012329,2]
[394829954,1764004240465,-841.189342,0.00012329,2]
[394829955,1764004240475,-841.189342,0.00012329,2]
[394829956,1764004240484,-170.568834,0.00012329,2]
[394829957,1764004240493,-841.189342,0.00012329,2]
[394829958,1764004240505,-151.254165,0.00012329,2]
[394829959,1764004240517,-170.568834,0.00012329,2]
[394829960,1764004240526,-841.189342,0.00012329,2]
[394829961,1764004240535,-170.568834,0.00012329,2]
[394829962,1764004240545,-170.568834,0.00012329,2]
[394829963,1764004240555,-151.0,0.00012329,2]
[394829964,1764004240565,-151.0,0.00012329,2]
[394829965,1764004240574,-151.0,0.00012329,2]
[394829966,1764004240587,-151.0,0.00012329,2]
[394829967,1764004240596,-1285.995222,0.00012329,2]
[394829968,1764004240605,-1285.995222,0.00012329,2]
[394829969,1764004240615,-1285.995222,0.00012329,2]
[394829970,1764004240624,-151.0,0.00012329,2]
[394829971,1764004240634,-1285.995222,0.00012329,2]
[394829972,1764004240644,-151.0,0.00012329,2]
[394829973,1764004240653,-151.0,0.00012329,2]
[394829974,1764004240663,-151.0,0.00012329,2]
[394829975,1764004240671,-151.0,0.00012329,2]
[394829976,1764004240681,-181.058826,0.00012329,2]
[394829977,1764004240690,-181.058826,0.00012329,2]
[394829978,1764004240699,-181.058826,0.00012329,2]
[394829979,1764004240709,-181.058826,0.00012329,2]
[394829980,1764004240718,-239.211571,0.00012329,2]
[394829981,1764004240727,-239.211571,0.00012329,2]
[394829982,1764004240737,-239.211571,0.00012329,2]
[394829983,1764004240746,-239.211571,0.00012329,2]
[394829984,1764004240756,-151.0,0.00012329,2]
[394829985,1764004240765,-206.543415,0.00012329,2]
[394829986,1764004240775,-1755.783485,0.00012329,2]
[394829987,1764004240785,-1755.783485,0.00012329,2]
[394829988,1764004240794,-1755.783485,0.00012329,2]
[394829989,1764004240804,-1755.783485,0.00012329,2]
[394829990,1764004240814,-283.854515,0.00012329,2]
[394829991,1764004240824,-151.0,0.00012329,2]
[394829992,1764004240833,-283.854515,0.00012329,2]
[394829993,1764004240843,-283.854515,0.00012329,2]
[394829994,1764004240852,-283.854515,0.00012329,2]
[394829995,1764004240862,-151.0,0.00012329,2]
[394829996,1764004240871,-151.781983,0.00012329,2]
[394829997,1764004240882,-1360.297015,0.00012329,2]
[394829998,1764004240891,-1360.297015,0.00012329,2]
[394829999,1764004240901,-170.958768,0.00012329,2]
[394830000,1764004240910,-151.0,0.00012329,2]
[394830001,1764004240920,-170.958768,0.00012329,2]
[394830002,1764004240929,-1360.297015,0.00012329,2]
[394830003,1764004240939,-260.567187,0.00012329,2]
[394830004,1764004240948,-170.958768,0.00012329,2]
[394830005,1764004240957,-1360.297015,0.00012329,2]
[394830006,1764004240966,-170.958768,0.00012329,2]
[394830007,1764004240976,-841.189342,0.00012329,2]
[394830008,1764004240985,-841.189342,0.00012329,2]
[394830009,1764004240995,-170.568834,0.00012329,2]
[394830010,1764004241004,-841.189342,0.00012329,2]
[394830011,1764004241013,-170.568834,0.00012329,2]
[394830012,1764004241022,-841.189342,0.00012329,2]
[394830013,1764004241031,-170.568834,0.00012329,2]
[394830014,1764004241040,-170.568834,0.00012329,2]
[394830015,1764004241049,-151.0,0.00012329,2]
[394830016,1764004241058,-151.0,0.00012329,2]
[394830017,1764004241067,-151.0,0.00012329,2]
[394830018,1764004241077,-151.0,0.00012329,2]
[394830019,1764004241086,-1285.995222,0.00012329,2]
[394830020,1764004241096,-1285.995222,0.00012329,2]
[394830021,1764004241105,-1285.995222,0.00012329,2]
[394830022,1764004241114,-151.0,0.00012329,2]
[394830023,1764004241123,-1285.995222,0.00012329,2]
[394830024,1764004241133,-151.0,0.00012329,2]
[394830025,1764004241143,-151.0,0.000124,2]
[394830026,1764004241153,-151.0,0.000124,2]
[394830027,1764004241163,-151.0,0.000125,2]
[394830028,1764004241172,-500.0,0.00012537,2]
[394830029,1764004241182,-353.36441271,0.00012567,2]
[394830030,1764004241191,-151.0,0.000126,2]
[394830031,1764004241200,-336.63461142,0.0001268,2]
[394830032,1764004241209,-151.0,0.000127,2]
[394830033,1764004241219,-151.0,0.000127,2]
[394830034,1764004241228,-516.34683712,0.00012773,2]
[394830035,1764004241237,-470.26798814,0.00012773,2]
[394830036,1764004241246,-508.89375394,0.00012773,2]
[394830037,1764004241255,-157.865926,0.00012798,2]
[394830038,1764004241265,-151.0,0.00012798,2]
[394830039,1764004241274,-151.0,0.00012798,2]
[394830040,1764004241283,-151.0,0.00012798,2]
[394830041,1764004241292,-151.0,0.000128,2]
[394830042,1764004241302,-151.0,0.000128,2]
[394830043,1764004241311,-184.10016293,0.00012811,2]
[394830044,1764004241321,-587.0,0.00012829,2]
[394830045,1764004241330,-211.0,0.00012829,2]
[394830046,1764004241339,-1219.0,0.0001283,2]
[394830047,1764004241349,-1950.0,0.00012845,2]
[394830048,1764004241358,-151.0,0.00012864,2]
[394830049,1764004241367,-1360.297015,0.00012864,2]
[394830050,1764004241377,-1360.297015,0.00012864,2]
[394830051,1764004241386,-170.958768,0.00012864,2]
[394830052,1764004241395,-151.0,0.00012864,2]
[394830053,1764004241404,-170.958768,0.00012864,2]
[394830054,1764004241413,-1360.297015,0.00012864,2]
[394830055,1764004241423,-170.958768,0.00012864,2]
[394830056,1764004241432,-1360.297015,0.00012864,2]
[394830057,1764004241441,-170.958768,0.00012864,2]
[394830058,1764004241450,-841.189342,0.00012864,2]
[394830059,1764004241459,-841.189342,0.00012864,2]
[394830060,1764004241468,-170.568834,0.00012864,2]
[394830061,1764004241478,-841.189342,0.00012864,2]
[394830062,1764004241487,-170.568834,0.00012864,2]
[394830063,1764004241496,-841.189342,0.00012864,2]
[394830064,1764004241506,-170.568834,0.00012864,2]
[394830065,1764004241520,-170.568834,0.00012864,2]
[394830066,1764004241529,-151.0,0.00012864,2]
[394830067,1764004241539,-151.0,0.00012864,2]
[394830068,1764004241549,-151.0,0.00012864,2]
[394830069,1764004241558,-156.595339,0.00012864,2]
[394830070,1764004241567,-1285.995222,0.00012864,2]
[394830071,1764004241576,-1285.995222,0.00012864,2]
[394830072,1764004241592,-1285.995222,0.00012864,2]
[394830073,1764004241602,-151.0,0.00012864,2]
[394830074,1764004241611,-1285.995222,0.00012864,2]
[394830075,1764004241621,-151.0,0.00012864,2]
[394830076,1764004241632,-1057.25838248,0.00012864,2]
[394830077,1764004241642,-2500.0,0.00012864,2]
[394830078,1764004241652,-517.65020776,0.00012864,2]
[394830079,1764004241661,-2500.0,0.00012864,2]
[394830080,1764004241670,-2500.0,0.00012864,2]
[394830081,1764004241681,-2520.5686985,0.00012888,2]
[394830082,1764004241690,-253.553823,0.00012888,2]
[394830083,1764004241700,-283.854515,0.00012888,2]
[394830084,1764004241711,-151.0,0.00012888,2]
[394830085,1764004241720,-283.854515,0.00012888,2]
[394830086,1764004241729,-283.854515,0.00012888,2]
[394830087,1764004241739,-283.854515,0.00012888,2]
[394830088,1764004241748,-500.0,0.00012897,2]
[394830089,1764004241759,-151.0,0.000129,2]
[394830090,1764004241769,-151.0,0.000129,2]
[394830091,1764004241779,-160.858,0.00012924,2]
[394830092,1764004241788,-151.0,0.00013,2]
[394830093,1764004241798,-151.0,0.00013,2]
[394830094,1764004241808,-204.0,0.00013038,2]
[394830095,1764004241818,-1485.23724279,0.00013065,2]
[394830096,1764004241828,-151.0,0.00013065,2]
[394830097,1764004241837,-151.0,0.00013065,2]
[394830098,1764004241847,-151.0,0.00013065,2]
[394830099,1764004241856,-151.0,0.000131,2]
[394830100,1764004241867,-600.0,0.00013155,2]
[394830101,1764004241876,-151.0,0.000132,2]
[394830102,1764004241886,-151.0,0.000132,2]
[394830103,1764004241896,-151.0,0.000133,2]
[394830104,1764004241906,-740.0,0.00013324,2]
[394830105,1764004241916,-740.0,0.00013366,2]
[394830106,1764004241926,-151.0,0.000134,2]
[394830107,1764004241936,-151.0,0.00013412,2]
[394830108,1764004241945,-151.0,0.00013412,2]
[394830109,1764004241954,-151.0,0.00013412,2]
[394830110,1764004241963,-181.058826,0.00013412,2]
[394830111,1764004241973,-181.058826,0.00013412,2]
[394830112,1764004241983,-181.058826,0.00013412,2]
[394830113,1764004241992,-181.058826,0.00013412,2]
[394830114,1764004242002,-239.211571,0.00013412,2]
[394830115,1764004242011,-239.211571,0.00013412,2]
[394830116,1764004242021,-239.211571,0.00013412,2]
[394830117,1764004242030,-239.211571,0.00013412,2]
[394830118,1764004242039,-1755.783485,0.00013412,2]
[394830119,1764004242049,-1755.783485,0.00013412,2]
[394830120,1764004242059,-1755.783485,0.00013412,2]
[394830121,1764004242068,-1755.783485,0.00013412,2]
[394830122,1764004242077,-3000.0,0.00013412,2]
[394830123,1764004242087,-2310.20845471,0.00013412,2]
[394830124,1764004242096,-3000.0,0.00013412,2]
[394830125,1764004242106,-740.0,0.0001342,2]
[394830126,1764004242115,-336.97124603,0.00013425,2]
[394830127,1764004242124,-1197.15438292,0.0001344,2]
[394830128,1764004242134,-740.0,0.00013486,2]
[394830129,1764004242143,-151.0,0.000135,2]
[394830130,1764004242153,-151.0,0.000135,2]
[394830131,1764004242162,-151.0,0.000135,2]
[394830132,1764004242171,-151.0,0.000135,2]
[394830133,1764004242180,-740.0,0.00013525,2]
[394830134,1764004242189,-740.0,0.00013549,2]
[394830135,1764004242199,-254.8247351,0.00013552,2]
[394830136,1764004242209,-12713.21935681,0.00013598,2]
[394830137,1764004242219,-151.0,0.000136,2]
[394830138,1764004242229,-151.0,0.000136,2]
[394830139,1764004242238,-740.0,0.00013613,2]
[394830140,1764004242248,-504.92520505,0.00013698,2]
[394830141,1764004242258,-505.47062885,0.00013698,2]
[394830142,1764004242267,-500.0,0.00013698,2]
[394830143,1764004242277,-500.0,0.00013698,2]
[394830144,1764004242287,-500.0,0.00013698,2]
[394830145,1764004242296,-500.0,0.00013698,2]
[394830146,1764004242306,-500.0,0.00013698,2]
[394830147,1764004242315,-500.0,0.00013698,2]
[394830148,1764004242325,-500.0,0.00013698,2]
[394830149,1764004242334,-535.55929025,0.00013698,2]
[394830150,1764004242344,-500.0,0.00013698,2]
[394830151,1764004242353,-500.0,0.00013698,2]
[394830152,1764004242363,-500.0,0.00013698,2]
[394830153,1764004242372,-500.0,0.00013698,2]
[394830154,1764004242383,-500.0,0.00013698,2]